fUSD/lending_fUSD_20240104
["ID","MTS","AMOUNT","RATE_DAILY","PERIOD"]
[310231277,1704405053513,-2706.45639902,0.000349,2]
[310231278,1704405053523,-2706.45639892,0.000349,2]
[310231279,1704405053534,-153.84,0.00034964,2]
[310231280,1704405053543,-100000.0,0.00035,5]
[310231281,1704405053554,-742.92807033,0.00035,2]
[310231282,1704405053564,-7026.64810061,0.00035,2]
[310231283,1704405053574,-155.0,0.00035,4]
[310231284,1704405053584,-13035.1985087,0.00035,4]
[310231285,1704405053594,-500.2820597,0.00035,4]
[310231286,1704405053603,-446.78845482,0.00035,4]
[310231287,1704405053613,-617.90544107,0.00035,4]
[310231288,1704405053623,-18957.59309852,0.00035,4]
[310231289,1704405053632,-201.35722068,0.00035,2]
[310231290,1704405053641,-293.53124522,0.00035,120]
[310231291,1704405053650,-500.0,0.00035068,2]
[310231292,1704405053661,-647.21,0.00035068,2]
[310231293,1704405053672,-479.2,0.00035068,2]
[310231294,1704405053682,-500.0,0.00035068,2]
[310231295,1704405053691,-500.0,0.00035068,2]
[310231296,1704405053700,-500.0,0.00035068,2]
[310231297,1704405053709,-261.74764896,0.00035068,2]
[310231298,1704405053718,-501.6,0.00035068,2]
[310231299,1704405053728,-500.0,0.00035068,2]
[310231300,1704405053739,-500.0,0.00035068,2]
[310231301,1704405053748,-500.0,0.00035068,2]
[310231302,1704405053757,-500.0,0.00035068,2]
[310231303,1704405053767,-500.0,0.00035068,2]
[310231304,1704405053777,-500.0,0.00035068,2]
[310231305,1704405053786,-500.0,0.00035068,2]
[310231306,1704405053796,-500.0,0.00035068,2]
[310231307,1704405053805,-562.63,0.00035068,2]
[310231308,1704405053814,-616.2,0.00035068,2]
[310231309,1704405053823,-500.0,0.00035068,2]
[310231310,1704405053833,-500.0,0.00035068,2]
[310231311,1704405053843,-966.67,0.00035068,2]
[310231312,1704405053852,-500.0,0.00035068,2]
[310231313,1704405053862,-743.24,0.00035068,2]
[310231314,1704405053871,-553.93,0.00035068,2]
[310231315,1704405053881,-500.0,0.00035068,2]
[310231316,1704405053891,-500.0,0.00035068,2]
[310231317,1704405053900,-500.0,0.00035068,2]
[310231318,1704405053909,-498.58,0.00035068,2]
[310231319,1704405053918,-1000.0,0.000351,2]
[310231320,1704405053927,-6829.27155038,0.00035143,2]
[310231321,1704405053937,-298.88438098,0.00035342,2]
[310231322,1704405053946,-647.21,0.00035342,2]
[310231323,1704405053956,-500.0,0.00035342,2]
[310231324,1704405053965,-500.0,0.00035342,2]
[310231325,1704405053974,-500.0,0.00035342,2]
[310231326,1704405053984,-501.6,0.00035342,2]
[310231327,1704405053994,-500.0,0.00035342,2]
[310231328,1704405054004,-500.0,0.00035342,2]
[310231329,1704405054014,-174.15078256,0.00035342,2]
[310231330,1704405054023,-500.0,0.00035342,2]
[310231331,1704405054033,-500.0,0.00035342,2]
[310231332,1704405054044,-500.0,0.00035342,2]
[310231333,1704405054054,-500.0,0.00035342,2]
[310231334,1704405054063,-616.2,0.00035342,2]
[310231335,1704405054072,-500.0,0.00035342,2]
[310231336,1704405054082,-500.0,0.00035342,2]
[310231337,1704405054092,-966.67,0.00035342,2]
[310231338,1704405054101,-500.0,0.00035342,2]
[310231339,1704405054110,-743.24,0.00035342,2]
[310231340,1704405054119,-553.93,0.00035342,2]
[310231341,1704405054129,-500.0,0.00035342,2]
[310231342,1704405054138,-500.0,0.00035342,2]
[310231343,1704405054148,-159.7455037,0.00035388,2]
[310231344,1704405054157,-180.0,0.00035526,2]
[310231345,1704405054167,-167.0,0.00035584,2]
[310231346,1704405054176,-1844.21,0.00035616,2]
[310231347,1704405054186,-647.21,0.00035616,2]
[310231348,1704405054196,-508.4,0.00035616,2]
[310231349,1704405054205,-500.0,0.00035616,2]
[310231350,1704405054215,-500.0,0.00035616,2]
[310231351,1704405054225,-501.6,0.00035616,2]
[310231352,1704405054235,-500.0,0.00035616,2]
[310231353,1704405054245,-500.0,0.00035616,2]
[310231354,1704405054255,-500.0,0.00035616,2]
[310231355,1704405054265,-500.0,0.00035616,2]
[310231356,1704405054274,-500.0,0.00035616,2]
[310231357,1704405054283,-500.0,0.00035616,2]
[310231358,1704405054293,-616.2,0.00035616,2]
[310231359,1704405054302,-500.0,0.00035616,2]
[310231360,1704405054311,-500.0,0.00035616,2]
[310231361,1704405054321,-966.67,0.00035616,2]
[310231362,1704405054330,-500.0,0.00035616,2]
[310231363,1704405054339,-743.24,0.00035616,2]
[310231364,1704405054349,-553.93,0.00035616,2]
[310231365,1704405054358,-464.43,0.00035616,2]
[310231366,1704405054368,-500.0,0.00035616,2]
[310231367,1704405054377,-150.0,0.00035616,2]
[310231368,1704405054386,-418.01,0.00035724,2]
[310231369,1704405054396,-833.0,0.0003573,2]
[310231370,1704405054405,-1110.069,0.0003573,2]
[310231371,1704405054414,-1498.386,0.0003573,2]
[310231372,1704405054423,-156.25,0.00035841,2]
[310231373,1704405054432,-600.0,0.0003588,2]
[310231374,1704405054442,-647.21,0.0003589,2]
[310231375,1704405054451,-500.0,0.0003589,2]
[310231376,1704405054460,-500.0,0.0003589,2]
[310231377,1704405054469,-501.6,0.0003589,2]
[310231378,1704405054478,-603.72,0.0003589,2]
[310231379,1704405054490,-500.0,0.0003589,2]
[310231380,1704405054500,-500.0,0.0003589,2]
[310231381,1704405054510,-500.0,0.0003589,2]
[310231382,1704405054522,-500.0,0.0003589,2]
[310231383,1704405054531,-616.2,0.0003589,2]
[310231384,1704405054541,-500.0,0.0003589,2]
[310231385,1704405054551,-500.0,0.0003589,2]
[310231386,1704405054561,-966.67,0.0003589,2]
[310231387,1704405054570,-500.0,0.0003589,2]
[310231388,1704405054581,-743.24,0.0003589,2]
[310231389,1704405054590,-553.93,0.0003589,2]
[310231390,1704405054600,-400.82546199,0.0003589,2]
[310231391,1704405054611,-15744.0,0.000359,3]
[310231392,1704405054621,-153.83,0.000359,3]
[310231393,1704405054630,-2706.45639892,0.00035934,2]
[310231394,1704405054640,-153.84,0.00035992,2]
[310231395,1704405054649,-100000.0,0.00036,6]
[310231396,1704405054659,-2000.0,0.00036,4]
[310231397,1704405054668,-26520.58207263,0.00036,4]
[310231398,1704405054678,-760.92227324,0.00036,4]
[310231399,1704405054688,-647.21,0.00036164,2]
[310231400,1704405054697,-500.0,0.00036164,2]
[310231401,1704405054707,-500.0,0.00036164,2]
[310231402,1704405054716,-144.81231909,0.00036164,2]
[310231403,1704405054872,-356.78768091,0.00036164,2]
[310231404,1704405054883,-500.0,0.00036164,2]
[310231405,1704405054893,-342.44722161,0.00036164,2]
[310231406,1704405054908,-157.55277839,0.00036164,2]
[310231407,1704405054918,-500.0,0.00036164,2]
[310231408,1704405054928,-334.72174837,0.00036164,2]
[310231409,1704405054940,-165.27825163,0.00036164,2]
[310231410,1704405054949,-468.95938493,0.00036164,2]
[310231411,1704405054961,-147.24061507,0.00036164,2]
[310231412,1704405054971,-308.00855582,0.00036164,2]
[310231413,1704405054992,-191.99144418,0.00036164,2]
[310231414,1704405055002,-500.0,0.00036164,2]
[310231415,1704405055011,-966.67,0.00036164,2]
[310231416,1704405055021,-500.0,0.00036164,2]
[310231417,1704405055030,-743.24,0.00036164,2]
[310231418,1704405055039,-553.93,0.00036164,2]
[310231419,1704405055049,-3279.04600086,0.00036265,11]
[310231420,1704405055058,-209.09625321,0.00036265,11]
[310231421,1704405055284,-1538.22980245,0.00036265,11]
[310231422,1704405055301,-2205.25,0.00036265,11]
[310231423,1704405055314,-336.83435,0.00036265,11]
[310231424,1704405055327,-296.10330325,0.00036265,11]
[310231425,1704405055344,-866.30297586,0.00036265,11]
[310231426,1704405055381,-500.0,0.00032876,2]
[310231427,1704405055391,-134.42820538,0.00032876,2]
[310231428,1704405055404,-365.57179462,0.00032876,2]
[310231429,1704405055414,-486.43659746,0.00032876,2]
[310231430,1704405055426,-13.56340254,0.00032876,2]
[310231431,1704405055436,-5667.76496662,0.00036265,11]
[310231432,1704405055446,-16637.11660628,0.00036265,11]
[310231433,1704405055456,-8077.50052886,0.00036265,11]
[310231434,1704405055466,-647.21,0.00036438,2]
[310231435,1704405055476,-500.0,0.00036438,2]
[310231436,1704405055486,-500.0,0.00036438,2]
[310231437,1704405055495,-501.6,0.00036438,2]
[310231438,1704405055506,-500.0,0.00036438,2]
[310231439,1704405055518,-500.0,0.00036438,2]
[310231440,1704405055527,-496.87190107,0.00036438,2]
[310231441,1704405055538,-500.0,0.00036438,2]
[310231442,1704405055548,-616.2,0.00036438,2]
[310231443,1704405055557,-500.0,0.00036438,2]
[310231444,1704405055568,-500.0,0.00036438,2]
[310231445,1704405055578,-966.67,0.00036438,2]
[310231446,1704405055589,-542.65,0.00036438,2]
[310231447,1704405055599,-743.24,0.00036438,2]
[310231448,1704405055609,-553.93,0.00036438,2]
[310231449,1704405055619,-150.0,0.00036554,2]
[310231450,1704405055629,-159.7455037,0.000366,2]
[310231451,1704405055639,-152.88,0.00036613,15]
[310231452,1704405055648,-150.0,0.000367,26]
[310231453,1704405055658,-647.21,0.00036712,2]
[310231454,1704405055667,-500.0,0.00036712,2]
[310231455,1704405055678,-500.0,0.00036712,2]
[310231456,1704405055688,-501.6,0.00036712,2]
[310231457,1704405055698,-500.0,0.00036712,2]
[310231458,1704405055709,-500.0,0.00036712,2]
[310231459,1704405055720,-541.39483391,0.00036712,2]
[310231460,1704405055729,-616.2,0.00036712,2]
[310231461,1704405055738,-500.0,0.00036712,2]
[310231462,1704405055750,-500.0,0.00036712,2]
[310231463,1704405055759,-966.67,0.00036712,2]
[310231464,1704405055769,-743.24,0.00036712,2]
[310231465,1704405055779,-553.93,0.00036712,2]
[310231466,1704405055789,-213.0,0.00036833,2]
[310231467,1704405055799,-907.52131016,0.00036967,9]
[310231468,1704405055809,-907.52131011,0.00036967,9]
[310231469,1704405055819,-647.21,0.00036986,2]
[310231470,1704405055829,-500.0,0.00036986,2]
[310231471,1704405055839,-527.03302259,0.00036986,2]
[310231472,1704405055849,-501.6,0.00036986,2]
[310231473,1704405055859,-500.0,0.00036986,2]
[310231474,1704405055869,-330.47234559,0.00036986,2]
[310231475,1704405055879,-616.2,0.00036986,2]
[310231476,1704405055889,-500.0,0.00036986,2]
[310231477,1704405055899,-500.0,0.00036986,2]
[310231478,1704405055910,-966.67,0.00036986,2]
[310231479,1704405055919,-743.24,0.00036986,2]
[310231480,1704405055928,-553.93,0.00036986,2]
[310231481,1704405055938,-181.12631998,0.00036999,4]
[310231482,1704405055948,-20136.24698877,0.00037,7]
[310231483,1704405055960,-3945.62482259,0.00037,7]
[310231484,1704405056028,-75918.12818864,0.00037,7]
[310231485,1704405056038,-603.05789513,0.00037,4]
[310231486,1704405056050,-308.92091342,0.00037,4]
[310231487,1704405056060,-153.83,0.00037,3]
[310231488,1704405056069,-2006.1,0.00037,2]
[310231489,1704405056080,-153.84,0.00037021,2]
[310231490,1704405056092,-931.0,0.00037167,20]
[310231491,1704405056104,-368.0,0.00037167,20]
[310231492,1704405056113,-150.0,0.000372,26]
[310231493,1704405056123,-809.29907843,0.0003724,4]
[310231494,1704405056132,-647.21,0.0003726,2]
[310231495,1704405056142,-500.0,0.0003726,2]
[310231496,1704405056152,-501.6,0.0003726,2]
[310231497,1704405056161,-500.0,0.0003726,2]
[310231498,1704405056171,-616.2,0.0003726,2]
[310231499,1704405056181,-500.0,0.0003726,2]
[310231500,1704405056191,-500.0,0.0003726,2]
[310231501,1704405056200,-966.67,0.0003726,2]
[310231502,1704405056210,-743.24,0.0003726,2]
[310231503,1704405056219,-553.93,0.0003726,2]
[310231504,1704405056228,-150.0,0.00037491,2]
[310231505,1704405056237,-2706.45639892,0.00037513,2]
[310231506,1704405056248,-647.21,0.00037534,2]
[310231507,1704405056261,-500.0,0.00037534,2]
[310231508,1704405056270,-501.6,0.00037534,2]
[310231509,1704405056279,-500.0,0.00037534,2]
[310231510,1704405056290,-616.2,0.00037534,2]
[310231511,1704405056299,-615.51495903,0.00037534,2]
[310231512,1704405056308,-500.0,0.00037534,2]
[310231513,1704405056317,-966.67,0.00037534,2]
[310231514,1704405056327,-743.24,0.00037534,2]
[310231515,1704405056337,-553.93,0.00037534,2]
[310231516,1704405056346,-167.0,0.00037542,2]
[310231517,1704405056356,-931.0,0.0003755,20]
[310231518,1704405056367,-368.0,0.0003755,20]
[310231519,1704405056377,-1077.24534152,0.00037589,3]
[310231520,1704405056387,-277.44626,0.000377,27]
[310231521,1704405056397,-1000.0,0.000378,2]
[310231522,1704405056407,-647.21,0.00037808,2]
[310231523,1704405056416,-500.0,0.00037808,2]
[310231524,1704405056426,-501.6,0.00037808,2]
[310231525,1704405056437,-500.0,0.00037808,2]
[310231526,1704405056446,-616.2,0.00037808,2]
[310231527,1704405056457,-500.0,0.00037808,2]
[310231528,1704405056467,-966.67,0.00037808,2]
[310231529,1704405056477,-743.24,0.00037808,2]
[310231530,1704405056488,-553.93,0.00037808,2]
[310231531,1704405056497,-159.7455037,0.00037813,2]
[310231532,1704405056507,-170.6863063,0.000379,2]
[310231533,1704405056520,-32856.53748303,0.000379,3]
[310231534,1704405056533,-6967.38128056,0.000379,3]
[310231535,1704405056544,-729.84447546,0.000379,3]
[310231536,1704405056556,-444.4,0.000379,3]
[310231537,1704405056568,-289.04145542,0.000379,3]
[310231538,1704405056691,2089.92975025,0.000192,2]
[310231539,1704405078745,168.39246214,0.00021,2]
[310231540,1704405092138,691.77508582,0.0001,2]
[310231541,1704405092972,617.34931452,0.00022,2]
[310231542,1704405094856,712.1280032,0.0002,2]
[310231543,1704405108384,534.29777316,0.000192,2]
[310231544,1704405120816,600.0,0.000155,2]
[310231545,1704405158890,882.45739522,0.000192,2]
[310231546,1704405215424,-159.21654015,0.00022767,2]
[310231547,1704405215450,-281.80987674,0.00022768,2]
[310231548,1704405215476,-246.15177983,0.00022768,2]
[310231549,1704405215502,-1331.25921981,0.00022768,2]
[310231550,1704405215529,-366.7615768,0.00022768,2]
[310231551,1704405215561,-233.65624485,0.00022998,2]
[310231552,1704405215588,-547.80678023,0.00022998,2]
[310231553,1704405215615,-324.23275866,0.00022999,2]
[310231554,1704405215646,-10125.14826074,0.00022999,2]
[310231555,1704405215675,-29194.98313905,0.00022999,2]
[310231556,1704405215702,-29875.10143405,0.00023,2]
[310231557,1704405247951,999.999999,0.0002,2]
[310231558,1704405351202,1090.81313736,0.0002,2]
[310231559,1704405358632,923.65457267,0.0002,2]
[310231560,1704405362492,5177.9469984,0.0002,2]
[310231561,1704405363407,360.18428125,0.0002,2]
[310231562,1704405363435,531.89867171,0.0002,2]
[310231563,1704405364943,155.0,0.0002,2]
[310231564,1704405372475,291.35276004,0.0002,2]
[310231565,1704405373341,167.77505425,5e-05,2]
[310231566,1704405379396,531.89867171,0.0002,2]
[310231567,1704405384970,155.0,0.0002,2]
[310231568,1704405385271,751.10679489,0.0002,2]
[310231569,1704405388471,291.84969782,0.0002,2]
[310231570,1704405388881,889.1116981,0.0002,2]
[310231571,1704405399564,360.60972697,0.0002,2]
[310231572,1704405401405,530.19346241,0.0002,2]
[310231573,1704405402915,186.47720979,0.0002,2]
[310231574,1704405414790,155.0,0.0002,2]
[310231575,1704405418629,1409.30881964,0.0002,2]
[310231576,1704405543201,164.67,0.00022272,2]
[310231593,1704405720726,-2000.0,0.00022768,2]
[310231594,1704405781652,-5986.37439671,0.00022768,2]
[310231595,1704405781673,-209.66706104,0.00022799,2]
[310231596,1704405781694,-218.49626607,0.00022899,2]
[310231597,1704405781716,-177.65513175,0.00022899,2]
[310231598,1704405781738,-2402.15763946,0.000229,2]
[310231599,1704405781761,-248.21973492,0.000229,2]
[310231600,1704405794922,296.33905584,0.000229,2]
[310231601,1704405805769,180.10143788,0.000229,2]
[310231602,1704405822849,280.98927633,0.000229,2]
[310231603,1704405941254,2466.96629898,0.00022307,2]
[310231604,1704405952939,3180.66829188,0.00022077,2]
[310231605,1704405970885,3180.66829188,0.00022077,2]
[310231606,1704406005342,400.83881245,0.00022213,2]
[310231607,1704406023947,155.0,0.00022077,2]
[310231608,1704406027119,155.0,0.00022077,2]
[310231609,1704406038543,254.77386546,0.00022077,2]
[310231610,1704406039107,500.0,0.00022077,2]
[310231612,1704406041139,155.0,0.00022077,2]
[310231616,1704406042126,-315.69954046,0.00022671,2]
[310231617,1704406042147,-157.71866942,0.00022897,2]
[310231618,1704406042168,-26.58179012,0.00022897,2]
[310231619,1704406044416,155.0,0.00022077,2]
[310231620,1704406045941,155.0,0.00022077,2]
[310231621,1704406052428,-131.13687926,0.00022897,2]
[310231622,1704406052451,-157.71866938,0.00022898,2]
[310231623,1704406052473,-157.71866938,0.00022898,2]
[310231624,1704406052498,-157.71866938,0.00022898,2]
[310231625,1704406052519,-157.71866938,0.00022899,2]
[310231626,1704406052540,-157.71866938,0.00022899,2]
[310231627,1704406056544,80.26977384,0.00022077,2]
[310231628,1704406056566,112.76945734,0.00022077,2]
[310231629,1704406059108,242.1940013,0.00022077,2]
[310231630,1704406063947,177.87762622,0.00022077,2]
[310231631,1704406064361,155.0,0.00022077,2]
[310231632,1704406066685,-157.71866938,0.00022899,2]
[310231633,1704406066710,-157.71866938,0.000229,2]
[310231634,1704406066733,-291.04274478,0.000229,2]
[310231635,1704406066757,-157.71866938,0.000229,2]
[310231636,1704406066780,-441.85646514,0.000229,2]
[310231637,1704406066804,-592.53966422,0.000229,2]
[310231638,1704406066827,-155.0,0.000229,2]
[310231639,1704406066849,-176.9222453,0.000229,2]
[310231640,1704406066871,-283.18234535,0.000229,2]
[310231641,1704406066891,-296.75522752,0.000229,2]
[310231642,1704406066914,-282.13378782,0.000229,2]
[310231643,1704406066935,-155.0,0.000229,2]
[310231644,1704406066956,-989.66528516,0.000229,2]
[310231645,1704406066979,-155.0,0.000229,2]
[310231646,1704406066999,-300.0,0.00022988,2]
[310231647,1704406067021,-5407.74622657,0.00022989,2]
[310231648,1704406071521,3215.71324807,0.00022077,2]
[310231649,1704406084303,390.65162201,0.00022077,2]
[310231650,1704406086550,-10000.0,0.00022989,2]
[310231651,1704406089477,359.70035646,0.00022077,2]
[310231652,1704406098366,261.46591715,0.00022077,2]
[310231653,1704406100472,-10000.0,0.00022989,2]
[310231654,1704406109854,-10000.0,0.00022989,2]
[310231655,1704406117192,-1340.57329369,0.000229,2]
[310231656,1704406117215,-8659.42670631,0.00022989,2]
[310231657,1704406125646,-10000.0,0.00022989,2]
[310231658,1704406147626,-249.941425,0.00022873,2]
[310231659,1704406147649,-1587.51793897,0.00022899,2]
[310231660,1704406147671,-1587.51793895,0.00022899,2]
[310231661,1704406147694,-973.07233223,0.00022989,2]
[310231662,1704406147719,-18917.88703901,0.00022989,2]
[310231663,1704406147748,-2558.54347903,0.00022997,2]
[310231664,1704406147771,-309.70137637,0.00022997,2]
[310231665,1704406147795,-2608.63551911,0.00022997,2]
[310231666,1704406147818,-269.18284995,0.00022997,2]
[310231667,1704406147843,-180.67619342,0.00022997,2]
[310231668,1704406148164,-5492.88042645,0.00022997,2]
[310231670,1704406148250,-300.65470659,0.00022997,2]
[310231672,1704406148271,-262.14741804,0.00022997,2]
[310231674,1704406148292,-2128.93083034,0.00022997,2]
[310231675,1704406148313,-18948.26672582,0.00022998,2]
[310231677,1704406148334,-130250.29923277,0.00022999,2]
[310231727,1704406188557,-1587.51793895,0.00022899,2]
[310231728,1704406188582,-1587.51793895,0.00022899,2]
[310231729,1704406188603,-1587.51793895,0.000229,2]
[310231730,1704406188625,-1587.51793895,0.000229,2]
[310231731,1704406188650,-1587.51793895,0.000229,2]
[310231732,1704406188673,-1587.51793895,0.000229,2]
[310231733,1704406188698,-4655.90241645,0.00022989,2]
[310231734,1704406188724,-85818.98994985,0.00022999,2]
[310231735,1704406203700,-1000.0,0.00022999,2]
[310231736,1704406212673,-1000.0,0.00022999,2]
[310231737,1704406220466,-2000.0,0.00022999,2]
[310231738,1704406226884,-5000.0,0.00022999,2]
[310231766,1704406231545,-337.41283474,0.00022999,2]
[310231768,1704406231558,-35934.80530652,0.00022999,2]
[310231771,1704406231584,-400.0,0.00022999,2]
[310231773,1704406231596,-644.81477819,0.00022999,2]
[310231777,1704406231653,-866.30438943,0.00022999,2]
[310231779,1704406231665,-380.12326788,0.00022999,2]
[310231780,1704406231711,-3782.82366605,0.00022999,2]
[310231781,1704406231763,-165599.88725381,0.00022999,2]
[310231782,1704406231773,-500.0,0.00022999,4]
[310231783,1704406231782,-502.75508928,0.00022999,4]
[310231784,1704406231791,-500.0,0.00022999,4]
[310231785,1704406231801,-317.16154968,0.00022999,4]
[310231786,1704406231810,-359.3539299,0.00022999,4]
[310231787,1704406231819,-177.06862654,0.00022999,4]
[310231788,1704406231828,-247.09563466,0.00022999,2]
[310231789,1704406231838,-150.0,0.00022999,2]
[310231790,1704406231847,-150.0,0.00022999,2]
[310231791,1704406231857,-150.0,0.00022999,2]
[310231792,1704406231866,-150.0,0.00022999,2]
[310231793,1704406231876,-150.0,0.00022999,2]
[310231795,1704406231885,-150.0,0.00022999,2]
[310231797,1704406231894,-150.0,0.00022999,2]
[310231798,1704406231903,-150.0,0.00022999,2]
[310231799,1704406231912,-150.0,0.00022999,2]
[310231800,1704406231921,-150.0,0.00022999,2]
[310231801,1704406231931,-150.0,0.00022999,2]
[310231802,1704406231941,-150.0,0.00022999,2]
[310231803,1704406231953,-642386.9315282,0.00023,2]
[310231804,1704406231969,-1458.80697684,0.00023,2]
[310231805,1704406231985,-12664.61507924,0.00023,2]
[310231833,1704406237661,-39570.10308171,0.00023,2]
[310231840,1704406237718,-1635401.33199416,0.00023,2]
[310231850,1704406237994,-10909921.74252229,0.00023,2]
[310231851,1704406238008,-767129.76227931,0.00023,2]
[310231852,1704406238021,-685536.05390616,0.00023,2]
[310231853,1704406238034,-578914.19288253,0.00023,2]
[310232042,1704406240136,-3850.72241634,0.00023,2]
[310232046,1704406240249,-318.21,0.00023,2]
[310232047,1704406240307,-301.57238638,0.00023,2]
[310232048,1704406240366,-529.17719984,0.00023,2]
[310232049,1704406241075,-5276.71300195,0.00023,2]
[310232050,1704406241132,-304378.52765989,0.00023,2]
[310232051,1704406241146,-606.92595423,0.00023,2]
[310232052,1704406241157,-331.57083643,0.00023,2]
[310232154,1704406245096,-6672.8314,0.00023,2]
[310232155,1704406245108,-23613.60141825,0.00023,2]
[310232172,1704406245685,-151163.03467094,0.00023,2]
[310232173,1704406245695,-4065.54,0.00023,2]
[310232174,1704406245705,-250.0,0.00023259,2]
[310232175,1704406245714,-154.44,0.00024566,2]
[310232176,1704406245724,-940.29,0.00024566,2]
[310232177,1704406245735,-5075.91,0.00024566,2]
[310232178,1704406245744,-154.44,0.00024646,2]
[310232179,1704406245754,-499.99,0.00024646,2]
[310232180,1704406245763,-1009.4,0.00024646,2]
[310232181,1704406245773,-557.26,0.00024666,2]
[310232182,1704406245783,-154.44,0.00024726,2]
[310232183,1704406245794,-498.06,0.00024752,2]
[310232184,1704406245805,-154.44,0.00024806,2]
[310232185,1704406245815,-154.44,0.00024886,2]
[310232186,1704406245824,-154.44,0.00024966,2]
[310232187,1704406245834,-296.88,0.00024966,2]
[310232188,1704406245843,-345.07406921,0.00025,2]
[310232189,1704406245854,-3032.92310119,0.00025,2]
[310232190,1704406245863,-430.0,0.00025,2]
[310232191,1704406245872,-210.1621425,0.00025,2]
[310232192,1704406245881,-200.0,0.00025,2]
[310232193,1704406245899,-189.9614115,0.00025,2]
[310232194,1704406245913,-154.44,0.00025046,2]
[310232196,1704406245923,-154.44,0.00025126,2]
[310232199,1704406245933,-154.44,0.00025206,2]
[310232201,1704406245943,-154.44,0.00025286,2]
[310232203,1704406245953,-154.44,0.00025366,2]
[310232205,1704406245962,-154.44,0.00025446,2]
[310232207,1704406245972,-154.44,0.00025526,2]
[310232209,1704406245982,-154.44,0.00025606,2]
[310232211,1704406245991,-557.26,0.00025645,2]
[310232213,1704406246002,-154.44,0.00025686,2]
[310232215,1704406246015,-154.44,0.00025766,2]
[310232217,1704406246025,-154.44,0.00025846,2]
[310232218,1704406246036,-2000.0,0.00026423,2]
[310232219,1704406246047,-250.0,0.000265,2]
[310232220,1704406246056,-13863.36,0.00026573,2]
[310232221,1704406246067,-150.0,0.00026574,2]
[310232222,1704406246077,-557.26,0.00026623,2]
[310232223,1704406246087,-306.8823,0.00027,2]
[310232224,1704406246099,-250.0,0.00027,3]
[310232225,1704406246109,-498.06,0.00027016,2]
[310232226,1704406246121,-200.0,0.00027397,5]
[310232227,1704406246133,-2519.73,0.00027397,2]
[310232228,1704406246143,-250.0,0.00027397,2]
[310232229,1704406246154,-29968.06,0.00027397,2]
[310232230,1704406246164,-257.09,0.00027447,2]
[310232231,1704406246173,-2519.73,0.00027556,2]
[310232232,1704406246183,-557.26,0.00027602,2]
[310232233,1704406246194,-7810.96,0.00027612,2]
[310232234,1704406246204,-2519.73,0.00027714,2]
[310232235,1704406246213,-150.91,0.0002784,2]
[310232236,1704406246223,-2519.73,0.00027872,2]
[310232237,1704406246233,-200.0,0.00027945,5]
[310232238,1704406246244,-395.11,0.00027945,2]
[310232239,1704406246255,-1699.53,0.00027945,2]
[310232240,1704406246265,-2519.73,0.0002803,2]
[310232241,1704406246276,-150.91,0.00028054,2]
[310232242,1704406246285,-2519.73,0.00028189,2]
[310232243,1704406246296,-182.91,0.00028226,2]
[310232244,1704406246307,-150.91,0.00028269,2]
[310232245,1704406246317,-2519.73,0.00028347,2]
[310232246,1704406246327,-150.91,0.00028483,2]
[310232247,1704406246337,-200.0,0.00028493,5]
[310232248,1704406246347,-2519.73,0.00028505,2]